[Event "Titled Tuesday Blitz August 15 Early 2023"]
[White "Wong, Yinn Long"]
[Black "Fernandez Garcia, Gumersindo"]
[WhiteFideId "5707684"]
[BlackFideId "24516740"]
[WhiteElo "2730"]
[BlackElo "2396"]
[Result "1-0"]
[Round "1"]
[TimeControl "180+1"]
[Date "2023.08.15"]
[WhiteClock "0:00:41"]
[BlackClock "0:00:00"]
[Board "96"]

1. d4 {[%clk 0:03:00]}  Nf6 {[%clk 0:02:54]} 2. Nf3 {[%clk 0:03:00]}  e6 {[%clk 0:02:53]} 3. c4 {[%clk 0:02:56]}  d5 {[%clk 0:02:53]} 4. cxd5 {[%clk 0:02:52]}  exd5 {[%clk 0:02:54]} 5. Nc3 {[%clk 0:02:53]}  c6 {[%clk 0:02:54]} 6. Bg5 {[%clk 0:02:52]}  Be7 {[%clk 0:02:54]} 7. e3 {[%clk 0:02:53]}  h6 {[%clk 0:02:54]} 8. Bh4 {[%clk 0:02:52]}  O-O {[%clk 0:02:55]} 9. Bd3 {[%clk 0:02:53]}  Nbd7 {[%clk 0:02:54]} 10. O-O {[%clk 0:02:53]}  Re8 {[%clk 0:02:55]} 11. Qc2 {[%clk 0:02:53]}  Nf8 {[%clk 0:02:50]} 12. Rab1 {[%clk 0:02:47]}  Ne4 {[%clk 0:02:18]} 13. Bxe7 {[%clk 0:02:42]}  Qxe7 {[%clk 0:02:19]} 14. Bxe4 {[%clk 0:02:29]}  dxe4 {[%clk 0:02:08]} 15. Nd2 {[%clk 0:02:28]}  f5 {[%clk 0:01:52]} 16. d5 {[%clk 0:02:20]}  Bd7 {[%clk 0:01:34]} 17. Qb3 {[%clk 0:02:07]}  Qf7 {[%clk 0:01:27]} 18. dxc6 {[%clk 0:01:50]}  Bxc6 {[%clk 0:01:26]} 19. Qxf7+ {[%clk 0:01:47]}  Kxf7 {[%clk 0:01:26]} 20. Nb3 {[%clk 0:01:48]}  Ne6 {[%clk 0:01:26]} 21. Rfd1 {[%clk 0:01:40]}  Red8 {[%clk 0:01:24]} 22. Na5 {[%clk 0:01:30]}  Rxd1+ {[%clk 0:01:23]} 23. Rxd1 {[%clk 0:01:31]}  Rd8 {[%clk 0:01:23]} 24. Nxc6 {[%clk 0:01:28]}  Rxd1+ {[%clk 0:01:21]} 25. Nxd1 {[%clk 0:01:29]}  bxc6 {[%clk 0:01:21]} 26. h4 {[%clk 0:01:21]}  g5 {[%clk 0:01:16]} 27. hxg5 {[%clk 0:01:21]}  hxg5 {[%clk 0:01:17]} 28. g3 {[%clk 0:01:18]}  Nc5 {[%clk 0:01:17]} 29. Kf1 {[%clk 0:01:18]}  Nd3 {[%clk 0:01:15]} 30. Ke2 {[%clk 0:01:18]}  Ke6 {[%clk 0:01:13]} 31. f4 {[%clk 0:01:09]}  g4 {[%clk 0:01:07]} 32. Kd2 {[%clk 0:01:09]}  Kd5 {[%clk 0:01:06]} 33. b3 {[%clk 0:01:09]}  c5 {[%clk 0:00:49]} 34. Nc3+ {[%clk 0:01:08]}  Kc6 {[%clk 0:00:49]} 35. Nd1 {[%clk 0:01:07]}  Nb4 {[%clk 0:00:49]} 36. Nc3 {[%clk 0:00:59]}  a6 {[%clk 0:00:47]} 37. Ke2 {[%clk 0:00:49]}  c4 {[%clk 0:00:41]} 38. Kd2 {[%clk 0:00:45]}  cxb3 {[%clk 0:00:36]} 39. axb3 {[%clk 0:00:46]}  Nd3 {[%clk 0:00:35]} 40. Ne2 {[%clk 0:00:46]}  Kd5 {[%clk 0:00:14]} 41. Nd4 {[%clk 0:00:46]}  Nc5 {[%clk 0:00:08]} 42. Kc3 {[%clk 0:00:46]}  Nd3 {[%clk 0:00:05]} 43. Nxf5 {[%clk 0:00:46]}  a5 {[%clk 0:00:05]} 44. Nh6 {[%clk 0:00:46]}  Nf2 {[%clk 0:00:02]} 45. Ng8 {[%clk 0:00:40]}  Ke6 {[%clk 0:00:00]} 46. Kd4 {[%clk 0:00:41]} 1-0


[Site "https://www.chess.com"]

[Event "Titled Tuesday Blitz August 15 Early 2023"]
[White "Chyngyz, Sultai"]
[Black "Akobian, Varuzhan"]
[WhiteFideId "13803158"]
[BlackFideId "13300580"]
[WhiteElo "2394"]
[BlackElo "2728"]
[Result "1-0"]
[Round "1"]
[TimeControl "180+1"]
[Date "2023.08.15"]
[WhiteClock "0:01:42"]
[BlackClock "0:00:42"]
[Board "97"]

1. e4 {[%clk 0:03:00]}  d6 {[%clk 0:02:59]} 2. c3 {[%clk 0:03:00]}  Nf6 {[%clk 0:02:58]} 3. Nf3 {[%clk 0:03:01]}  c6 {[%clk 0:02:57]} 4. d3 {[%clk 0:03:02]}  Bg4 {[%clk 0:02:56]} 5. Be2 {[%clk 0:03:01]}  d5 {[%clk 0:02:56]} 6. e5 {[%clk 0:03:00]}  Nfd7 {[%clk 0:02:56]} 7. d4 {[%clk 0:03:01]}  e6 {[%clk 0:02:56]} 8. h3 {[%clk 0:03:01]}  Bh5 {[%clk 0:02:56]} 9. O-O {[%clk 0:03:02]}  c5 {[%clk 0:02:56]} 10. Be3 {[%clk 0:03:02]}  Qb6 {[%clk 0:02:56]} 11. Qd2 {[%clk 0:02:58]}  Nc6 {[%clk 0:02:55]} 12. b3 {[%clk 0:02:54]}  Rc8 {[%clk 0:02:53]} 13. Rd1 {[%clk 0:02:40]}  cxd4 {[%clk 0:02:52]} 14. cxd4 {[%clk 0:02:41]}  Bb4 {[%clk 0:02:51]} 15. Qb2 {[%clk 0:02:39]}  O-O {[%clk 0:02:51]} 16. a3 {[%clk 0:02:39]}  Be7 {[%clk 0:02:50]} 17. Nc3 {[%clk 0:02:38]}  a6 {[%clk 0:02:48]} 18. Na4 {[%clk 0:02:37]}  Qa7 {[%clk 0:02:48]} 19. Rac1 {[%clk 0:02:34]}  b5 {[%clk 0:02:43]} 20. Nc5 {[%clk 0:02:28]}  Bxc5 {[%clk 0:02:36]} 21. dxc5 {[%clk 0:02:28]}  Bxf3 {[%clk 0:02:36]} 22. Bxf3 {[%clk 0:02:28]}  Ndxe5 {[%clk 0:02:36]} 23. Be2 {[%clk 0:02:23]}  Rfd8 {[%clk 0:02:34]} 24. b4 {[%clk 0:02:19]}  Nc4 {[%clk 0:02:33]} 25. Bxc4 {[%clk 0:02:19]}  bxc4 {[%clk 0:02:33]} 26. a4 {[%clk 0:02:16]}  Rb8 {[%clk 0:02:17]} 27. b5 {[%clk 0:02:13]}  axb5 {[%clk 0:02:16]} 28. axb5 {[%clk 0:02:14]}  Qa4 {[%clk 0:02:07]} 29. b6 {[%clk 0:02:13]}  h6 {[%clk 0:01:59]} 30. Qe2 {[%clk 0:02:07]}  d4 {[%clk 0:01:42]} 31. Bf4 {[%clk 0:02:06]}  e5 {[%clk 0:01:38]} 32. Bxh6 {[%clk 0:02:00]}  gxh6 {[%clk 0:01:36]} 33. Qg4+ {[%clk 0:02:00]}  Kf8 {[%clk 0:01:34]} 34. Qh4 {[%clk 0:01:56]}  c3 {[%clk 0:01:12]} 35. Qxh6+ {[%clk 0:01:56]}  Ke7 {[%clk 0:01:06]} 36. Rd3 {[%clk 0:01:50]}  Kd7 {[%clk 0:00:42]} 37. Qd6+ {[%clk 0:01:42]}  Kc8 {[%clk 0:00:42]} 38. Qc7# {[%clk 0:01:42]} 1-0


[Site "https://www.chess.com"]

[Event "Titled Tuesday Blitz August 15 Early 2023"]
[White "Volkov, Maksim"]
[Black "MarijaKuznecova"]
[WhiteFideId "54123070"]
[WhiteElo "2721"]
[BlackElo "2390"]
[Result "1-0"]
[Round "1"]
[TimeControl "180+1"]
[Date "2023.08.15"]
[WhiteClock "0:00:27"]
[BlackClock "0:00:03"]
[Board "100"]

1. d4 {[%clk 0:03:00]}  Nf6 {[%clk 0:02:58]} 2. c4 {[%clk 0:03:00]}  c5 {[%clk 0:02:58]} 3. d5 {[%clk 0:02:59]}  b5 {[%clk 0:02:58]} 4. cxb5 {[%clk 0:02:59]}  a6 {[%clk 0:02:58]} 5. bxa6 {[%clk 0:03:00]}  g6 {[%clk 0:02:59]} 6. Nc3 {[%clk 0:03:00]}  Bg7 {[%clk 0:02:59]} 7. e4 {[%clk 0:03:01]}  d6 {[%clk 0:02:59]} 8. Bb5+ {[%clk 0:02:49]}  Nbd7 {[%clk 0:02:55]} 9. Nf3 {[%clk 0:02:42]}  Qa5 {[%clk 0:02:50]} 10. O-O {[%clk 0:02:39]}  Bxa6 {[%clk 0:02:49]} 11. a4 {[%clk 0:02:27]}  Bxb5 {[%clk 0:02:47]} 12. Nxb5 {[%clk 0:02:27]}  Nxe4 {[%clk 0:02:37]} 13. Re1 {[%clk 0:02:27]}  f5 {[%clk 0:02:37]} 14. Ng5 {[%clk 0:02:25]}  O-O {[%clk 0:01:58]} 15. Nxe4 {[%clk 0:02:09]}  fxe4 {[%clk 0:01:59]} 16. Rxe4 {[%clk 0:02:10]}  Rfb8 {[%clk 0:01:42]} 17. Bd2 {[%clk 0:02:06]}  Qd8 {[%clk 0:01:33]} 18. Bc3 {[%clk 0:01:51]}  Bxc3 {[%clk 0:01:15]} 19. bxc3 {[%clk 0:01:52]}  Nf6 {[%clk 0:01:14]} 20. Re1 {[%clk 0:01:51]}  Qa5 {[%clk 0:01:13]} 21. Qe2 {[%clk 0:01:45]}  Rb7 {[%clk 0:00:59]} 22. c4 {[%clk 0:01:39]}  Qd8 {[%clk 0:00:53]} 23. h3 {[%clk 0:01:32]}  Kg7 {[%clk 0:00:47]} 24. Qe6 {[%clk 0:01:28]}  Ne8 {[%clk 0:00:42]} 25. Re3 {[%clk 0:01:19]}  Kh8 {[%clk 0:00:40]} 26. a5 {[%clk 0:01:05]}  Ng7 {[%clk 0:00:39]} 27. Qf7 {[%clk 0:01:05]}  Rd7 {[%clk 0:00:29]} 28. a6 {[%clk 0:01:01]}  e5 {[%clk 0:00:26]} 29. Qf3 {[%clk 0:01:00]}  Nf5 {[%clk 0:00:26]} 30. Rb3 {[%clk 0:00:58]}  Rf7 {[%clk 0:00:23]} 31. a7 {[%clk 0:00:55]}  Qf8 {[%clk 0:00:18]} 32. Qe2 {[%clk 0:00:50]}  Rb7 {[%clk 0:00:17]} 33. Qb2 {[%clk 0:00:47]}  Qd8 {[%clk 0:00:14]} 34. Raa3 {[%clk 0:00:40]}  Kg8 {[%clk 0:00:13]} 35. Ra6 {[%clk 0:00:35]}  Qd7 {[%clk 0:00:10]} 36. g4 {[%clk 0:00:31]}  Nh4 {[%clk 0:00:09]} 37. Nxd6 {[%clk 0:00:29]}  Rbxa7 {[%clk 0:00:08]} 38. Rb8+ {[%clk 0:00:26]}  Rxb8 {[%clk 0:00:03]} 39. Qxb8+ {[%clk 0:00:27]} 1-0


[Site "https://www.chess.com"]

[Event "Titled Tuesday Blitz August 15 Early 2023"]
[White "Starozhilov, Leonid"]
[Black "sebastianmarinp"]
[WhiteFideId "14106752"]
[WhiteElo "2720"]
[BlackElo "2388"]
[Result "1/2-1/2"]
[Round "1"]
[TimeControl "180+1"]
[Date "2023.08.15"]
[WhiteClock "0:00:19"]
[BlackClock "0:00:17"]
[Board "102"]

1. e4 {[%clk 0:02:50]}  c5 {[%clk 0:02:57]} 2. Nc3 {[%clk 0:02:49]}  Nc6 {[%clk 0:02:54]} 3. Bb5 {[%clk 0:02:49]}  e6 {[%clk 0:02:45]} 4. Bxc6 {[%clk 0:02:48]}  bxc6 {[%clk 0:02:45]} 5. d3 {[%clk 0:02:49]}  d5 {[%clk 0:02:45]} 6. f4 {[%clk 0:02:49]}  g6 {[%clk 0:02:40]} 7. Nf3 {[%clk 0:02:47]}  Bg7 {[%clk 0:02:40]} 8. O-O {[%clk 0:02:37]}  Ne7 {[%clk 0:02:40]} 9. e5 {[%clk 0:02:25]}  O-O {[%clk 0:02:39]} 10. Na4 {[%clk 0:02:24]}  Qa5 {[%clk 0:02:14]} 11. c4 {[%clk 0:02:24]}  dxc4 {[%clk 0:02:02]} 12. dxc4 {[%clk 0:02:24]}  Rd8 {[%clk 0:02:02]} 13. Bd2 {[%clk 0:02:16]}  Qc7 {[%clk 0:01:52]} 14. Qe2 {[%clk 0:02:05]}  Rb8 {[%clk 0:01:45]} 15. b3 {[%clk 0:02:05]}  Nf5 {[%clk 0:01:43]} 16. Nxc5 {[%clk 0:01:54]}  Qb6 {[%clk 0:01:39]} 17. b4 {[%clk 0:01:53]}  a5 {[%clk 0:01:33]} 18. a3 {[%clk 0:01:53]}  Bf8 {[%clk 0:01:26]} 19. g4 {[%clk 0:01:30]}  axb4 {[%clk 0:01:15]} 20. axb4 {[%clk 0:01:25]}  Bxc5+ {[%clk 0:01:09]} 21. bxc5 {[%clk 0:01:25]}  Qxc5+ {[%clk 0:01:10]} 22. Qf2 {[%clk 0:01:03]}  Nd4 {[%clk 0:01:07]} 23. Nxd4 {[%clk 0:00:49]}  Qxd4 {[%clk 0:01:08]} 24. Be3 {[%clk 0:00:40]}  Qe4 {[%clk 0:01:00]} 25. Bc5 {[%clk 0:00:32]}  Qxc4 {[%clk 0:00:50]} 26. Rac1 {[%clk 0:00:31]}  Qd5 {[%clk 0:00:48]} 27. Bd6 {[%clk 0:00:27]}  Rb3 {[%clk 0:00:38]} 28. Rfd1 {[%clk 0:00:26]}  Rd3 {[%clk 0:00:33]} 29. Qe2 {[%clk 0:00:21]}  Qd4+ {[%clk 0:00:30]} 30. Kg2 {[%clk 0:00:20]}  Rxd1 {[%clk 0:00:29]} 31. Rxd1 {[%clk 0:00:21]}  Qxf4 {[%clk 0:00:30]} 32. Qf3 {[%clk 0:00:17]}  Qxf3+ {[%clk 0:00:26]} 33. Kxf3 {[%clk 0:00:18]}  Ba6 {[%clk 0:00:25]} 34. Rc1 {[%clk 0:00:16]}  Rc8 {[%clk 0:00:19]} 35. g5 {[%clk 0:00:14]}  h5 {[%clk 0:00:16]} 36. Ke4 {[%clk 0:00:12]}  c5 {[%clk 0:00:12]} 37. Rxc5 {[%clk 0:00:11]}  Rxc5 {[%clk 0:00:12]} 38. Bxc5 {[%clk 0:00:12]}  Bb7+ {[%clk 0:00:13]} 39. Kf4 {[%clk 0:00:12]}  Bd5 {[%clk 0:00:13]} 40. h4 {[%clk 0:00:12]}  Bc6 {[%clk 0:00:12]} 41. Be7 {[%clk 0:00:12]}  Bd5 {[%clk 0:00:13]} 42. Ke3 {[%clk 0:00:12]}  Bc6 {[%clk 0:00:13]} 43. Kd4 {[%clk 0:00:13]}  Bd5 {[%clk 0:00:13]} 44. Kc5 {[%clk 0:00:13]}  Ba2 {[%clk 0:00:14]} 45. Bf6 {[%clk 0:00:14]}  Bd5 {[%clk 0:00:15]} 46. Kd6 {[%clk 0:00:14]}  Ba2 {[%clk 0:00:15]} 47. Ke7 {[%clk 0:00:15]}  Bd5 {[%clk 0:00:15]} 48. Ke8 {[%clk 0:00:16]}  Bc4 {[%clk 0:00:15]} 49. Ke7 {[%clk 0:00:17]}  Bd5 {[%clk 0:00:16]} 50. Ke8 {[%clk 0:00:18]}  Bc4 {[%clk 0:00:16]} 51. Ke7 {[%clk 0:00:19]}  Bd5 {[%clk 0:00:17]} 1/2-1/2


[Site "https://www.chess.com"]

[Event "Titled Tuesday Blitz August 15 Early 2023"]
[White "Slovineanu, Viacheslav"]
[Black "carokannlover213"]
[WhiteFideId "13900510"]
[WhiteElo "2384"]
[BlackElo "2718"]
[Result "0-1"]
[Round "1"]
[TimeControl "180+1"]
[Date "2023.08.15"]
[WhiteClock "0:00:00"]
[BlackClock "0:01:16"]
[Board "105"]

1. d4 {[%clk 0:01:33]}  Nf6 {[%clk 0:02:59]} 2. Nf3 {[%clk 0:01:33]}  g6 {[%clk 0:02:57]} 3. c4 {[%clk 0:01:32]}  Bg7 {[%clk 0:02:57]} 4. Nc3 {[%clk 0:01:33]}  O-O {[%clk 0:02:57]} 5. e4 {[%clk 0:01:33]}  d6 {[%clk 0:02:58]} 6. Be2 {[%clk 0:01:33]}  e5 {[%clk 0:02:59]} 7. Be3 {[%clk 0:01:33]}  Ng4 {[%clk 0:02:56]} 8. Bg5 {[%clk 0:01:33]}  f6 {[%clk 0:02:55]} 9. Bh4 {[%clk 0:01:33]}  Nh6 {[%clk 0:02:53]} 10. h3 {[%clk 0:01:29]}  Nc6 {[%clk 0:02:44]} 11. d5 {[%clk 0:01:29]}  Ne7 {[%clk 0:02:39]} 12. g4 {[%clk 0:01:24]}  g5 {[%clk 0:02:33]} 13. Bg3 {[%clk 0:01:24]}  Ng6 {[%clk 0:02:34]} 14. Nd2 {[%clk 0:01:18]}  Nf4 {[%clk 0:02:32]} 15. f3 {[%clk 0:01:14]}  Nf7 {[%clk 0:02:30]} 16. h4 {[%clk 0:01:10]}  Ng2+ {[%clk 0:02:25]} 17. Kf2 {[%clk 0:01:07]}  Nxh4 {[%clk 0:02:25]} 18. Bxh4 {[%clk 0:01:04]}  gxh4 {[%clk 0:02:26]} 19. Nf1 {[%clk 0:00:48]}  Bh6 {[%clk 0:02:22]} 20. Ne3 {[%clk 0:00:47]}  Bg5 {[%clk 0:02:05]} 21. Nf5 {[%clk 0:00:47]}  Bxf5 {[%clk 0:02:03]} 22. exf5 {[%clk 0:00:37]}  c6 {[%clk 0:02:03]} 23. Ne4 {[%clk 0:00:35]}  Qb6+ {[%clk 0:01:59]} 24. Kg2 {[%clk 0:00:30]}  Kg7 {[%clk 0:01:52]} 25. Rb1 {[%clk 0:00:19]}  Rh8 {[%clk 0:01:44]} 26. b4 {[%clk 0:00:05]}  h5 {[%clk 0:01:40]} 27. c5 {[%clk 0:00:05]}  Qc7 {[%clk 0:01:36]} 28. Bc4 {[%clk 0:00:01]}  hxg4 {[%clk 0:01:28]} 29. fxg4 {[%clk 0:00:02]}  h3+ {[%clk 0:01:29]} 30. Rxh3 {[%clk 0:00:02]}  Rxh3 {[%clk 0:01:30]} 31. Kxh3 {[%clk 0:00:02]}  Rh8+ {[%clk 0:01:30]} 32. Kg2 {[%clk 0:00:03]}  Bf4 {[%clk 0:01:29]} 33. cxd6 {[%clk 0:00:01]}  Nxd6 {[%clk 0:01:28]} 34. Nxd6 {[%clk 0:00:02]}  Qxd6 {[%clk 0:01:28]} 35. dxc6 {[%clk 0:00:02]}  Rh2+ {[%clk 0:01:24]} 36. Kg1 {[%clk 0:00:02]}  Qxc6 {[%clk 0:01:24]} 37. Bd5 {[%clk 0:00:02]}  Qb6+ {[%clk 0:01:23]} 38. Kf1 {[%clk 0:00:02]}  Rf2+ {[%clk 0:01:17]} 39. Ke1 {[%clk 0:00:00]}  Qe3+ {[%clk 0:01:16]} 0-1


[Site "https://www.chess.com"]

[Event "Titled Tuesday Blitz August 15 Early 2023"]
[White "Rietze, Clemens, Dr."]
[Black "Kuznetsov, Felix"]
[WhiteFideId "24620351"]
[BlackFideId "34147990"]
[WhiteElo "2382"]
[BlackElo "2710"]
[Result "0-1"]
[Round "1"]
[TimeControl "180+1"]
[Date "2023.08.15"]
[WhiteClock "0:00:13"]
[BlackClock "0:00:13"]
[Board "107"]

1. d4 {[%clk 0:02:58]}  Nf6 {[%clk 0:02:58]} 2. c4 {[%clk 0:02:58]}  e6 {[%clk 0:02:59]} 3. Nf3 {[%clk 0:02:56]}  b6 {[%clk 0:02:57]} 4. g3 {[%clk 0:02:56]}  Bb7 {[%clk 0:02:57]} 5. Bg2 {[%clk 0:02:56]}  Be7 {[%clk 0:02:57]} 6. O-O {[%clk 0:02:56]}  O-O {[%clk 0:02:57]} 7. Nc3 {[%clk 0:02:57]}  d5 {[%clk 0:02:54]} 8. cxd5 {[%clk 0:02:52]}  exd5 {[%clk 0:02:54]} 9. Qc2 {[%clk 0:02:47]}  Na6 {[%clk 0:02:51]} 10. Rd1 {[%clk 0:02:46]}  Qc8 {[%clk 0:02:46]} 11. Bf4 {[%clk 0:02:29]}  Rd8 {[%clk 0:02:42]} 12. Ne5 {[%clk 0:02:26]}  Qe6 {[%clk 0:02:41]} 13. Rac1 {[%clk 0:02:16]}  h6 {[%clk 0:02:27]} 14. Qa4 {[%clk 0:02:13]}  c5 {[%clk 0:02:26]} 15. dxc5 {[%clk 0:02:06]}  Nxc5 {[%clk 0:02:25]} 16. Qd4 {[%clk 0:02:05]}  Nfe4 {[%clk 0:02:16]} 17. Nb5 {[%clk 0:01:58]}  Qf5 {[%clk 0:01:59]} 18. Nf3 {[%clk 0:01:45]}  Bf6 {[%clk 0:01:48]} 19. Qb4 {[%clk 0:01:38]}  Ne6 {[%clk 0:01:37]} 20. Nfd4 {[%clk 0:01:31]}  Bxd4 {[%clk 0:01:16]} 21. Nxd4 {[%clk 0:01:31]}  Qf6 {[%clk 0:01:11]} 22. Be3 {[%clk 0:01:29]}  N6c5 {[%clk 0:01:05]} 23. Qe1 {[%clk 0:01:19]}  Re8 {[%clk 0:01:03]} 24. Nb5 {[%clk 0:01:16]}  Re7 {[%clk 0:00:58]} 25. Bd4 {[%clk 0:01:15]}  Qg6 {[%clk 0:00:55]} 26. b4 {[%clk 0:01:02]}  Ne6 {[%clk 0:00:51]} 27. Bb2 {[%clk 0:00:52]}  Ba6 {[%clk 0:00:44]} 28. Rxd5 {[%clk 0:00:38]}  Bxb5 {[%clk 0:00:39]} 29. Rxb5 {[%clk 0:00:39]}  Rd8 {[%clk 0:00:33]} 30. Re5 {[%clk 0:00:31]}  Nd6 {[%clk 0:00:30]} 31. Rd5 {[%clk 0:00:27]}  Red7 {[%clk 0:00:27]} 32. Rcd1 {[%clk 0:00:25]}  Nc7 {[%clk 0:00:24]} 33. R5d2 {[%clk 0:00:20]}  Qe6 {[%clk 0:00:23]} 34. Bc6 {[%clk 0:00:15]}  Re7 {[%clk 0:00:19]} 35. a4 {[%clk 0:00:15]}  Kh7 {[%clk 0:00:17]} 36. e3 {[%clk 0:00:12]}  Nc4 {[%clk 0:00:17]} 37. Rxd8 {[%clk 0:00:11]}  Qxc6 {[%clk 0:00:17]} 38. Ba1 {[%clk 0:00:09]}  Qf3 {[%clk 0:00:16]} 39. Rc1 {[%clk 0:00:06]}  Ne6 {[%clk 0:00:14]} 40. Qd1 {[%clk 0:00:05]}  Qe4 {[%clk 0:00:07]} 41. f3 {[%clk 0:00:02]}  Qxe3+ {[%clk 0:00:07]} 42. Kh1 {[%clk 0:00:02]}  Nxd8 {[%clk 0:00:07]} 43. Rxc4 {[%clk 0:00:02]}  Qe1+ {[%clk 0:00:06]} 44. Qxe1 {[%clk 0:00:02]}  Rxe1+ {[%clk 0:00:07]} 45. Kg2 {[%clk 0:00:03]}  Rxa1 {[%clk 0:00:08]} 46. Rc8 {[%clk 0:00:03]}  Rxa4 {[%clk 0:00:07]} 47. Rxd8 {[%clk 0:00:04]}  Rxb4 {[%clk 0:00:08]} 48. Rd7 {[%clk 0:00:04]}  a5 {[%clk 0:00:08]} 49. Rxf7 {[%clk 0:00:05]}  a4 {[%clk 0:00:08]} 50. Ra7 {[%clk 0:00:05]}  b5 {[%clk 0:00:09]} 51. f4 {[%clk 0:00:05]}  Rb3 {[%clk 0:00:10]} 52. f5 {[%clk 0:00:06]}  Kg8 {[%clk 0:00:09]} 53. g4 {[%clk 0:00:06]}  a3 {[%clk 0:00:10]} 54. Ra5 {[%clk 0:00:06]}  b4 {[%clk 0:00:10]} 55. h4 {[%clk 0:00:06]}  Rb2+ {[%clk 0:00:10]} 56. Kg3 {[%clk 0:00:07]}  a2 {[%clk 0:00:11]} 57. g5 {[%clk 0:00:08]}  hxg5 {[%clk 0:00:11]} 58. hxg5 {[%clk 0:00:08]}  b3 {[%clk 0:00:12]} 59. g6 {[%clk 0:00:08]}  Kf8 {[%clk 0:00:12]} 60. Ra8+ {[%clk 0:00:09]}  Ke7 {[%clk 0:00:12]} 61. Ra7+ {[%clk 0:00:09]}  Kd6 {[%clk 0:00:11]} 62. Rf7 {[%clk 0:00:10]}  a1=Q {[%clk 0:00:11]} 63. Rxg7 {[%clk 0:00:10]}  Qg1+ {[%clk 0:00:11]} 64. Kf4 {[%clk 0:00:11]}  Rf2+ {[%clk 0:00:11]} 65. Ke4 {[%clk 0:00:11]}  Qe1+ {[%clk 0:00:11]} 66. Kd3 {[%clk 0:00:11]}  Rd2+ {[%clk 0:00:12]} 67. Kc4 {[%clk 0:00:12]}  Qc1+ {[%clk 0:00:12]} 68. Kxb3 {[%clk 0:00:12]}  Rb2+ {[%clk 0:00:12]} 69. Ka4 {[%clk 0:00:13]}  Qa1# {[%clk 0:00:13]} 0-1


[Site "https://www.chess.com"]

[Event "Titled Tuesday Blitz August 15 Early 2023"]
[White "Vafin, Ayrat"]
[Black "Shyam, Sundar M."]
[WhiteFideId "4146530"]
[BlackFideId "5019141"]
[WhiteElo "2380"]
[BlackElo "2707"]
[Result "0-1"]
[Round "1"]
[TimeControl "180+1"]
[Date "2023.08.15"]
[WhiteClock "0:00:15"]
[BlackClock "0:01:12"]
[Board "109"]

1. Nf3 {[%clk 0:03:00]}  b6 {[%clk 0:02:55]} 2. g3 {[%clk 0:03:01]}  Bb7 {[%clk 0:02:56]} 3. Bg2 {[%clk 0:03:01]}  g6 {[%clk 0:02:56]} 4. c4 {[%clk 0:03:02]}  Bg7 {[%clk 0:02:56]} 5. O-O {[%clk 0:03:02]}  Nf6 {[%clk 0:02:55]} 6. d4 {[%clk 0:03:00]}  O-O {[%clk 0:02:55]} 7. d5 {[%clk 0:03:01]}  d6 {[%clk 0:02:54]} 8. Nc3 {[%clk 0:03:01]}  Nbd7 {[%clk 0:02:55]} 9. Qc2 {[%clk 0:03:01]}  a5 {[%clk 0:02:52]} 10. e4 {[%clk 0:02:59]}  e5 {[%clk 0:02:51]} 11. dxe6 {[%clk 0:02:57]}  fxe6 {[%clk 0:02:52]} 12. Re1 {[%clk 0:02:55]}  e5 {[%clk 0:02:51]} 13. Nd5 {[%clk 0:02:51]}  Nc5 {[%clk 0:02:49]} 14. Bd2 {[%clk 0:02:24]}  Bc8 {[%clk 0:02:46]} 15. Nxf6+ {[%clk 0:02:02]}  Qxf6 {[%clk 0:02:42]} 16. Be3 {[%clk 0:02:03]}  h6 {[%clk 0:02:33]} 17. Nd2 {[%clk 0:02:00]}  Ne6 {[%clk 0:02:07]} 18. Rad1 {[%clk 0:01:59]}  c5 {[%clk 0:01:59]} 19. Nb3 {[%clk 0:01:54]}  Nd4 {[%clk 0:01:59]} 20. Bxd4 {[%clk 0:01:52]}  cxd4 {[%clk 0:02:00]} 21. Nc1 {[%clk 0:01:47]}  Bg4 {[%clk 0:01:57]} 22. Rd2 {[%clk 0:01:44]}  Rac8 {[%clk 0:01:56]} 23. Qd3 {[%clk 0:01:41]}  h5 {[%clk 0:01:54]} 24. b3 {[%clk 0:01:33]}  Bh6 {[%clk 0:01:54]} 25. Rc2 {[%clk 0:01:34]}  h4 {[%clk 0:01:50]} 26. h3 {[%clk 0:01:34]}  hxg3 {[%clk 0:01:47]} 27. fxg3 {[%clk 0:01:35]}  Be6 {[%clk 0:01:46]} 28. Qe2 {[%clk 0:01:30]}  Be3+ {[%clk 0:01:45]} 29. Kh2 {[%clk 0:01:29]}  Qg5 {[%clk 0:01:44]} 30. Nd3 {[%clk 0:01:28]}  Kg7 {[%clk 0:01:44]} 31. h4 {[%clk 0:01:13]}  Rh8 {[%clk 0:01:27]} 32. Bh3 {[%clk 0:01:13]}  Rxh4 {[%clk 0:01:26]} 33. gxh4 {[%clk 0:01:05]}  Qxh4 {[%clk 0:01:26]} 34. Qg2 {[%clk 0:00:44]}  Rh8 {[%clk 0:01:25]} 35. Nf2 {[%clk 0:00:40]}  Bxh3 {[%clk 0:01:13]} 36. Qg3 {[%clk 0:00:15]}  Bf4 {[%clk 0:01:12]} 0-1


[Site "https://www.chess.com"]

[Event "Titled Tuesday Blitz August 15 Early 2023"]
[White "Skvortsov, Andrei"]
[Black "Der_Balak_3Halak"]
[WhiteFideId "24108600"]
[WhiteElo "2704"]
[BlackElo "2377"]
[Result "1-0"]
[Round "1"]
[TimeControl "180+1"]
[Date "2023.08.15"]
[WhiteClock "0:01:36"]
[BlackClock "0:00:00"]
[Board "112"]

1. e4 {[%clk 0:03:00]}  c5 {[%clk 0:02:58]} 2. d4 {[%clk 0:02:59]}  cxd4 {[%clk 0:02:58]} 3. Qxd4 {[%clk 0:02:59]}  Nc6 {[%clk 0:02:49]} 4. Qd3 {[%clk 0:02:59]}  d6 {[%clk 0:02:24]} 5. Nc3 {[%clk 0:02:58]}  g6 {[%clk 0:02:21]} 6. Nf3 {[%clk 0:02:57]}  Bg7 {[%clk 0:02:20]} 7. Be2 {[%clk 0:02:58]}  Nf6 {[%clk 0:02:14]} 8. O-O {[%clk 0:02:57]}  O-O {[%clk 0:02:12]} 9. Nd5 {[%clk 0:02:57]}  Nxd5 {[%clk 0:02:06]} 10. exd5 {[%clk 0:02:58]}  Bf5 {[%clk 0:02:05]} 11. Qd1 {[%clk 0:02:56]}  Nb4 {[%clk 0:01:48]} 12. c3 {[%clk 0:02:55]}  Nc2 {[%clk 0:01:42]} 13. g4 {[%clk 0:02:54]}  Nxa1 {[%clk 0:00:53]} 14. gxf5 {[%clk 0:02:53]}  gxf5 {[%clk 0:00:54]} 15. Bg5 {[%clk 0:02:40]}  h6 {[%clk 0:00:51]} 16. Bh4 {[%clk 0:02:39]}  Qd7 {[%clk 0:00:43]} 17. Qxa1 {[%clk 0:02:29]}  e5 {[%clk 0:00:43]} 18. Ne1 {[%clk 0:02:20]}  e4 {[%clk 0:00:41]} 19. Ng2 {[%clk 0:02:19]}  Kh7 {[%clk 0:00:35]} 20. Qc1 {[%clk 0:02:14]}  Rg8 {[%clk 0:00:34]} 21. Kh1 {[%clk 0:02:11]}  Be5 {[%clk 0:00:33]} 22. Bg3 {[%clk 0:02:10]}  Rg7 {[%clk 0:00:28]} 23. Nf4 {[%clk 0:02:08]}  Rag8 {[%clk 0:00:26]} 24. Qe3 {[%clk 0:02:09]}  Qe7 {[%clk 0:00:21]} 25. Nh5 {[%clk 0:02:00]}  Rg5 {[%clk 0:00:20]} 26. f4 {[%clk 0:01:57]}  exf3 {[%clk 0:00:19]} 27. Bxf3 {[%clk 0:01:54]}  f6 {[%clk 0:00:10]} 28. Nf4 {[%clk 0:01:52]}  Qf7 {[%clk 0:00:09]} 29. Bg2 {[%clk 0:01:50]}  Rg4 {[%clk 0:00:08]} 30. Qd3 {[%clk 0:01:49]}  R8g5 {[%clk 0:00:05]} 31. Bh3 {[%clk 0:01:45]}  Bxf4 {[%clk 0:00:05]} 32. Bxg4 {[%clk 0:01:41]}  Bxg3 {[%clk 0:00:04]} 33. Bxf5+ {[%clk 0:01:41]}  Kg7 {[%clk 0:00:04]} 34. hxg3 {[%clk 0:01:40]}  Qh5+ {[%clk 0:00:05]} 35. Kg2 {[%clk 0:01:40]}  Qh4 {[%clk 0:00:03]} 36. Bh3 {[%clk 0:01:36]}  Qf4 {[%clk 0:00:00]} 37. Rxf4 {[%clk 0:01:36]} 1-0


[Site "https://www.chess.com"]